fUSD/lending_fUSD_20240328
["ID","MTS","AMOUNT","RATE_DAILY","PERIOD"]
[320848751,1711627831751,-7826.894474,0.000298,2]
[320848752,1711627831761,-359.56252001,0.000298,2]
[320848753,1711627831770,-879.80595438,0.000298,2]
[320848754,1711627831785,-151.58862486,0.000298,2]
[320848755,1711627831795,-218.0,0.000357,2]
[320848756,1711627831805,-155.37739819,0.00036449,4]
[320848757,1711627831817,-555.0,0.00036449,4]
[320848758,1711627831827,-350.0,0.00037,3]
[320848759,1711627831837,-326.51,0.00037197,2]
[320848760,1711627831848,-150.31,0.00038855,2]
[320848761,1711627831857,-175.69,0.00038929,2]
[320848762,1711627831866,-317.57,0.00038986,2]
[320848763,1711627831876,-400.0,0.00039,3]
[320848764,1711627831885,-349.96,0.00039,2]
[320848765,1711627831894,-250.0,0.00039004,2]
[320848766,1711627831904,-1000.0,0.00039012,120]
[320848767,1711627831914,-1063.49,0.00039012,2]
[320848768,1711627831923,-19249.16,0.00039034,2]
[320848769,1711627831932,-152.0,0.00039156,120]
[320848774,1711627832016,-250.0,0.00039156,2]
[320848776,1711627832026,-250.0,0.00039184,112]
[320848778,1711627832035,-500.0,0.00039207,2]
[320848780,1711627832044,-189.12,0.0003924,2]
[320848782,1711627832053,-223.22,0.00039264,15]
[320848785,1711627832063,-150.0,0.00039283,2]
[320848788,1711627832073,-1000.0,0.00039425,2]
[320848790,1711627832082,-1378.04,0.00039425,2]
[320848792,1711627832091,-326.51,0.00039461,2]
[320848794,1711627832101,-831.19,0.000395,2]
[320848796,1711627832110,-150.05,0.00039679,2]
[320848798,1711627832119,-150.05,0.00039851,2]
[320848800,1711627832128,-150.05,0.00040023,2]
[320848802,1711627832139,-150.05,0.00040196,2]
[320848803,1711627832147,-264.67,0.00040362,2]
[320848804,1711627832156,-150.05,0.00040368,2]
[320848805,1711627832165,-1753.33466495,0.000404,14]
[320848806,1711627832174,-13501.31598233,0.000404,2]
[320848807,1711627832190,-705.0,0.000404,2]
[320848808,1711627832202,-586.44897174,0.000404,2]
[320848809,1711627832220,-85207.23504593,0.000404,2]
[320848810,1711627832229,-538161.60759702,0.000404,2]
[320848811,1711627832238,-9807.5558911,0.000404,2]
[320848812,1711627832246,-151.88475609,0.000404,8]
[320848813,1711627832255,-291.85507195,0.000404,2]
[320848814,1711627832264,-179.46623,0.000404,4]
[320848815,1711627832273,-166.37504122,0.000404,120]
[320848816,1711627832282,-873.64879108,0.000404,2]
[320848817,1711627832292,-261.47612564,0.000404,2]
[320848818,1711627832301,-2250.26087534,0.000404,2]
[320848819,1711627832311,-492.82392866,0.000404,2]
[320848820,1711627832320,-1711.14673376,0.000404,2]
[320848821,1711627832329,-8243.04011764,0.000404,2]
[320848822,1711627832339,-240.3,0.0004047,15]
[320848823,1711627832351,-150.5,0.0004047,15]
[320848824,1711627832360,-1621.0,0.0004047,15]
[320848825,1711627832369,-150.5,0.0004048,15]
[320848826,1711627832378,-150.5,0.0004048,15]
[320848827,1711627832387,-1621.0,0.0004048,15]
[320848828,1711627832397,-150.5,0.0004049,15]
[320848829,1711627832406,-150.5,0.0004049,15]
[320848830,1711627832415,-1621.0,0.0004049,15]
[320848831,1711627832424,-162.50493674,0.00040497,2]
[320848832,1711627832433,-496.96172517,0.00040498,4]
[320848833,1711627832442,-283.97774869,0.00040498,4]
[320848834,1711627832452,-271.16402469,0.00040499,2]
[320848835,1711627832461,-222777.91342355,0.000405,30]
[320848857,1711627840129,-1329.93378323,0.000405,30]
[320848882,1711627842923,-2309641.99557589,0.000405,30]
[320848883,1711627842953,-1243.700005,0.000405,30]
[320848884,1711627842966,-1623.03575849,0.000405,30]
[320848896,1711627862590,1080.12864077,0.000298,10]
[320848897,1711628278706,-359.56252001,0.000298,2]
[320848898,1711628278727,-1031.39457924,0.000298,2]
[320848899,1711628278747,-732.04290075,0.000298,2]
[320848906,1711628914955,-19689.80322429,0.000298,2]
[320848907,1711628914980,-2200.81580875,0.000298,2]
[320848908,1711628915007,-359.56252001,0.000298,2]
[320848909,1711628915031,-1031.39457924,0.000298,2]
[320848910,1711628970236,-799.0,0.000297,2]
[320848911,1711628970266,-250.11543104,0.000298,2]
[320848912,1711628970293,-359.56252001,0.000298,2]
[320848921,1711629032308,-359.56252001,0.000298,2]
[320848922,1711629032319,-114.45118316,0.00033,3]
[320848923,1711629032331,-135.54881684,0.00033,3]
[320848924,1711629032341,-300.0,0.00035,3]
[320848925,1711629032353,-155.0,0.00036449,4]
[320848926,1711629032363,-350.0,0.00037,3]
[320848927,1711629032374,-13.46569494,0.000378,2]
[320848928,1711629032416,-1486.53430506,0.000378,2]
[320848929,1711629032426,-206.8946907,0.00038069,4]
[320848930,1711629032435,-400.0,0.00039,3]
[320848931,1711629032445,-315.66,0.00039275,2]
[320848932,1711629032455,-643.93684455,0.00039689,4]
[320848933,1711629032465,-150.0,0.0004019,2]
[320848934,1711629032474,-150.0,0.00040226,2]
[320848935,1711629032483,-232.63,0.00040408,2]
[320848936,1711629032492,-262.66956471,0.0004047,2]
[320848937,1711629032501,-8826.80030199,0.0004047,2]
[320848938,1711629032510,-1937.78815118,0.00040498,4]
[320848939,1711629032519,-179.46623,0.00040499,4]
[320848940,1711629032529,-8387.44530689,0.000405,30]
[320848941,1711629032562,-2237.00743188,0.000405,30]
[320848942,1711629032573,-3682.5,0.000405,30]
[320848943,1711629032590,-1071.32430337,0.000405,30]
[320848945,1711629032606,-829.59060237,0.000405,30]
[320848982,1711629037949,-2333.55,0.000405,30]
[320848983,1711629037997,-402.74710932,0.000405,30]
[320848984,1711629038116,-274.42,0.000405,30]
[320849020,1711629040074,-91068.91779171,0.000405,30]
[320849031,1711629043080,-1016.1,0.000405,30]
[320849033,1711629043563,-10428.06031138,0.000405,30]
[320849077,1711629043984,-585.90022325,0.000405,30]
[320849293,1711629045976,-3409.44920562,0.000405,30]
[320849296,1711629045989,-1116.09526601,0.000405,30]
[320849302,1711629046037,-2924.66815476,0.000405,30]
[320849317,1711629046325,-626.32597215,0.000405,30]
[320849435,1711629047693,1468.57801159,0.000298,2]
[320849457,1711629047933,359.56252001,0.000298,2]
[320849702,1711629877853,1020.82444483,0.0003,10]
[320849727,1711630232071,-515.17,0.00037085,2]
[320849728,1711630232081,-155.0,0.0003756,4]
[320849729,1711630232090,-254.18,0.0003756,2]
[320849730,1711630232100,-60.18450096,0.000381,2]
[320849731,1711630232943,-2189.81549904,0.000381,2]
[320849732,1711630232952,-150.72,0.00038808,2]
[320849733,1711630232961,-156.46875952,0.0003889,2]
[320849734,1711630232971,-250.0,0.0003899,112]
[320849735,1711630232981,-308.07,0.00038997,15]
[320849736,1711630232991,-10998.09,0.00039027,2]
[320849737,1711630233000,-1000.0,0.00039067,2]
[320849738,1711630233009,-1299.16,0.00039216,2]
[320849739,1711630233018,-250.0,0.00039224,2]
[320849740,1711630233026,-175.69,0.00039237,2]
[320849741,1711630233036,-250.0,0.00039237,2]
[320849742,1711630233045,-621.74,0.00039266,2]
[320849743,1711630233054,-363.86,0.00039283,2]
[320849744,1711630233063,-815.46,0.00039301,120]
[320849745,1711630233073,-178.53,0.00039338,2]
[320849746,1711630233082,-515.17,0.00039349,2]
[320849747,1711630233092,-323.97,0.00039508,2]
[320849748,1711630233101,-3289.95,0.0003958,2]
[320849749,1711630233110,-323.97,0.00039617,2]
[320849750,1711630233120,-323.97,0.00039725,2]
[320849751,1711630233129,-323.97,0.00039833,2]
[320849752,1711630233138,-779.88,0.00039849,2]
[320849753,1711630233150,-323.97,0.00039942,2]
[320849754,1711630233159,-546.14755752,0.0004,2]
[320849755,1711630233169,-323.97,0.0004005,2]
[320849756,1711630233179,-150.72,0.00040121,2]
[320849757,1711630233189,-323.97,0.00040159,2]
[320849758,1711630233198,-323.97,0.00040267,2]
[320849759,1711630233208,-323.97,0.00040375,2]
[320849760,1711630233217,-23054.76128051,0.000404,30]
[320849761,1711630233227,-1281.48543369,0.000404,2]
[320849762,1711630233236,-17645.86907603,0.000404,2]
[320849763,1711630233245,-1467.26026,0.0004047,4]
[320849764,1711630233255,-323.97,0.00040484,2]
[320849765,1711630233264,-780.72902429,0.00040498,4]
[320849766,1711630233274,-10834.010959,0.00040498,4]
[320849767,1711630233283,-150.01,0.00040498,2]
[320849768,1711630233292,-1100.55861186,0.00040498,2]
[320849769,1711630233301,-1925.55761278,0.00040498,4]
[320849770,1711630233311,-2040.55786066,0.00040498,4]
[320849771,1711630233320,-174.40472646,0.00040499,4]
[320849772,1711630233329,-156.93009379,0.00040499,4]
[320849773,1711630233338,-155.62909176,0.00040499,4]
[320849774,1711630233347,-455.79906707,0.00040499,4]
[320849775,1711630233357,-2632.61490269,0.00040499,4]
[320849776,1711630233367,-155.0,0.00040499,4]
[320849777,1711630233377,-237.08146081,0.00040499,4]
[320849778,1711630233386,-197.91349535,0.00040499,4]
[320849779,1711630233398,-307.43374907,0.00040499,31]
[320849780,1711630233407,-277228.92615694,0.000405,30]
[320849781,1711630233417,-487.45270905,0.000405,2]
[320849782,1711630233430,-156.46875946,0.00040538,2]
[320849783,1711630233440,-1120.48903721,0.00040566,2]
[320849784,1711630233451,-323.97,0.00040592,2]
[320849785,1711630233462,-275.5,0.000407,2]
[320849786,1711630233471,-323.97,0.000407,2]
[320849787,1711630233481,-166.22,0.00040718,2]
[320849788,1711630233490,-7089.12917795,0.00040767,2]
[320849789,1711630233499,-700.0,0.00040778,30]
[320849790,1711630233509,-3772.0,0.00040778,4]
[320849791,1711630233520,-1294.068666,0.00040778,2]
[320849792,1711630233531,-2250.0,0.000408,2]
[320849793,1711630233541,-323.97,0.00040809,2]
[320849794,1711630233552,-323.97,0.00040917,2]
[320849795,1711630233562,-450.0,0.00041,3]
[320849796,1711630233570,-323.97,0.00041025,2]
[320849797,1711630233579,-166.1,0.00041047,2]
[320849798,1711630233589,-152.0,0.00041133,120]
[320849799,1711630233598,-323.97,0.00041134,2]
[320849800,1711630233608,-323.97,0.00041242,2]
[320849801,1711630233617,-168.67,0.00041306,2]
[320849802,1711630233627,-323.97,0.0004135,2]
[320849803,1711630233636,-150.72,0.00041434,2]
[320849804,1711630233647,-323.97,0.00041459,2]
[320849805,1711630233656,-323.97,0.00041567,2]
[320849806,1711630233665,-515.17,0.00041613,2]
[320849807,1711630233674,-276.072754,0.000417,2]
[320849808,1711630233684,-308.07,0.00041736,15]
[320849809,1711630233693,-621.74,0.00042006,2]
[320849810,1711630233704,-156.46875946,0.00042187,2]
[320849811,1711630233714,-17645.86907598,0.00042262,2]
[320849812,1711630233724,-1281.48543369,0.00042289,2]
[320849813,1711630233735,-166.22,0.00042398,2]
[320849814,1711630233744,-150.72,0.00042747,2]
[320849815,1711630233753,-150.0,0.00042864,60]
[320849816,1711630233763,-500.0,0.00043,3]
[320849817,1711630233772,-156.46875946,0.00043835,2]
[320849818,1711630233782,-515.17,0.00043877,2]
[320849819,1711630233791,-1000.0,0.00043951,2]
[320849820,1711630233801,-1141.7770113,0.00044,30]
[320849821,1711630233810,-150.72,0.0004406,2]
[320849822,1711630233820,-166.22,0.00044079,2]
[320849823,1711630233829,-17645.86907598,0.00044124,2]
[320849824,1711630233838,-1281.48543369,0.00044178,2]
[320849825,1711630233848,-308.07,0.00044476,15]
[320849826,1711630233858,-621.74,0.00044746,2]
[320849827,1711630233867,-187.9064056,0.000449,2]
[320849828,1711630233876,-550.0,0.00045,3]
[320849829,1711630233886,-141644.1330307,0.00045,30]
[320849830,1711630233897,-1000.0,0.00045,2]
[320849831,1711630233906,-150.72,0.00045373,2]
[320849832,1711630233915,-1467.26027,0.0004547,4]
[320849833,1711630233924,-156.46875946,0.00045483,2]
[320849834,1711630233935,-166.22,0.00045759,2]
[320849835,1711630233945,-17645.86907598,0.00045987,2]
[320849836,1711630233954,-1281.48543369,0.00046067,2]
[320849837,1711630233964,-515.17,0.00046141,2]
[320849838,1711630233976,-150.72,0.00046687,2]
[320849839,1711630233987,-600.0,0.00047,3]
[320849840,1711630233996,-156.46875946,0.00047132,2]
[320849841,1711630234006,-308.07,0.00047216,15]
[320849842,1711630234015,-166.22,0.00047439,2]
[320849843,1711630234024,-17645.86907598,0.00047849,2]
[320849844,1711630234034,-1281.48543369,0.00047956,2]
[320849845,1711630234043,-150.72,0.00048,2]
[320849846,1711630234053,-715.90469543,0.00048,2]
[320849847,1711630234063,-515.17,0.00048405,2]
[320849848,1711630234074,-914.0827195,0.00048592,30]
[320849849,1711630234085,-151.88475609,0.0004878,40]
[320849850,1711630234094,-594.3818,0.0004878,120]
[320849851,1711630234103,-399.0,0.0004879,2]
[320849852,1711630234113,-1607.22344288,0.000488,25]
[320849853,1711630234122,-333.08325,0.000488,25]
[320849854,1711630234132,-1000.0,0.00048834,2]
[320849855,1711630234141,-150.5,0.0004885,15]
[320849856,1711630234150,-1135.0,0.0004885,15]
[320849857,1711630234159,-150.5,0.0004886,15]
[320849858,1711630234170,-1135.0,0.0004886,15]
[320849859,1711630234179,-150.5,0.0004887,15]
[320849860,1711630234189,-1135.0,0.0004887,15]
[320849861,1711630234199,-1049.8390749,0.00048877,2]
[320849862,1711630234209,-179014.79380536,0.0004888,2]
[320849863,1711630234229,-308.68743525,0.0004888,2]
[320849864,1711630234242,-1216.39911852,0.0004888,2]
[320849865,1711630234459,-944.29932622,0.0004888,2]
[320849866,1711630234472,-7650.55102826,0.0004888,2]
[320849885,1711630237976,-156.46875946,0.0004878,2]
[320849887,1711630237986,-1833.90170742,0.0004888,2]
[320849890,1711630238155,-6901.08734422,0.0004888,2]
[320849891,1711630238342,-661.35,0.0004888,2]
[320849962,1711630240161,-150.01,0.00048879,2]
[320849965,1711630240174,-880.44688948,0.00048879,2]
[320849966,1711630240183,-178840.4954603,0.0004888,2]
[320849970,1711630240286,-3085.08742911,0.0004888,2]
[320849971,1711630240353,-3511.32186204,0.0004888,2]
[320849988,1711630243459,-1540.98349076,0.0004888,2]
[320849989,1711630243471,-6880.32549586,0.0004888,2]
[320849990,1711630243483,-1361.70161791,0.0004888,2]
[320849991,1711630243528,-1946.25,0.0004888,2]
[320850024,1711630246565,-209.03415306,0.00048879,2]
[320850025,1711630246574,-357.60899392,0.00048879,2]
[320850028,1711630270611,73481.60538506,0.00018,2]
[320850029,1711630270672,167000.0,0.00018,2]
[320850030,1711630270730,1258923.84973121,0.00018,2]
[320850031,1711630441206,1431261.82783254,0.00018,2]
[320850049,1711631432816,-12725.94174839,0.0002975,2]
[320850050,1711631432871,-306.20467746,0.0002975,2]
[320850085,1711631438429,-65501.00709109,0.0002975,2]
[320850086,1711631438438,-640.74271689,0.000298,2]
[320850087,1711631438448,-72148.22027979,0.000299,2]
[320850088,1711631438458,-97739.37285068,0.0003,2]
[320850089,1711631438467,-6024.67236367,0.0003,2]
[320850090,1711631438477,-1504.19494436,0.0003,2]
[320850091,1711631438487,-762.16358657,0.0003,2]
[320850092,1711631438496,-373.76752041,0.0003,2]
[320850093,1711631438506,-345.99165259,0.0003,2]
[320850094,1711631438515,-9356.32480074,0.0003,2]
[320850095,1711631438525,-315.09992443,0.0003,2]
[320850096,1711631438535,-1695.83253051,0.0003,2]
[320850098,1711631438544,-208.0,0.000324,2]
[320850100,1711631438554,-640.74271684,0.00032901,2]
[320850101,1711631438563,-250.0,0.00033,3]
[320850103,1711631438572,-300.0,0.00035,3]
[320850106,1711631438582,-610.10298413,0.00036,2]
[320850107,1711631438591,-640.74271684,0.00036002,2]
[320850109,1711631438601,-350.0,0.00037,3]
[320850112,1711631438609,-400.0,0.00039,3]
[320850114,1711631438620,-640.74271684,0.00039103,2]
[320850117,1711631438629,-450.0,0.00041,3]
[320850120,1711631438638,-360.61,0.00041545,2]
[320850123,1711631438648,-640.74271684,0.00042204,2]
[320850124,1711631438657,-500.0,0.00043,3]
[320850125,1711631438666,-150.72,0.00043286,2]
[320850127,1711631438675,-231.05,0.00043522,15]
[320850129,1711631438685,-250.0,0.0004353,112]
[320850131,1711631438694,-400.0,0.00043638,2]
[320850133,1711631438704,-29489.0,0.0004364,2]
[320850136,1711631438713,-500.0,0.00043704,2]
[320850138,1711631438722,-360.61,0.00043808,2]
[320850140,1711631438732,-233.34,0.00044315,2]
[320850142,1711631438742,-153.76,0.00044404,120]
[320850143,1711631438751,-649.9,0.00044574,120]
[320850145,1711631438760,-550.0,0.00045,3]
[320850147,1711631438770,-640.74271684,0.00045304,2]
[320850149,1711631438779,-600.0,0.00045366,2]
[320850152,1711631438789,-4164.95,0.00045388,60]
[320850154,1711631438798,-181.93,0.00045459,2]
[320850156,1711631438807,-250.0,0.00045513,120]
[320850158,1711631438816,-360.61,0.00046072,2]
[320850160,1711631438827,-231.05,0.00046261,15]
[320850162,1711631438837,-150.72,0.00046425,2]
[320850163,1711631438847,-344.0,0.00047,120]
[320850165,1711631438857,-1005.03097592,0.000475,2]
[320850166,1711631438866,-360.61,0.00048336,2]
[320850167,1711631438875,-640.74271684,0.00048405,2]
[320850168,1711631438885,-1017.73732463,0.0004855,20]
[320850169,1711631438895,-150.0,0.00048668,2]
[320850170,1711631438906,-1745.36418751,0.0004878,25]
[320850171,1711631438917,-305.3263125,0.0004878,25]
[320850172,1711631438928,-151.88475609,0.0004878,40]
[320850173,1711631438938,-161.27769005,0.00048877,2]
[320850174,1711631438950,-4903.04916528,0.00048878,2]
[320850175,1711631438959,-500.0,0.00048878,4]
[320850176,1711631438968,-632.8357128,0.00048879,2]
[320850177,1711631438978,-394364.68432828,0.0004888,2]
[320850184,1711631440584,-3658.21176151,0.0004888,2]
[320850185,1711631440596,-1416.79608494,0.0004888,2]
[320850186,1711631440608,-812.99244877,0.0004888,2]
[320850191,1711631443213,-4524.52611033,0.0004888,2]
[320850192,1711631443337,-397.00005046,0.0004888,2]
[320850193,1711631443618,-506.26857024,0.00048879,2]
[320850194,1711631443630,-7083.48167976,0.0004888,2]
[320850195,1711631443674,-3431.24629291,0.0004888,2]
[320850196,1711631443733,-434.51827536,0.0004888,2]
[320850197,1711631443744,-455.18287689,0.0004888,2]
[320850198,1711631443755,-39604.54634602,0.0004888,2]
[320850221,1711632392172,-155.0,0.00032999,4]
[320850222,1711632392193,-543.09650846,0.00032999,4]
[320850223,1711632392213,-250.0,0.00033,3]
[320850224,1711632392233,-300.0,0.00035,3]
[320850225,1711632392255,-612.3472,0.00040647,2]
[320850226,1711632392276,-561.1982,0.00040647,2]
[320850227,1711632392296,-338.88524284,0.00040747,30]
[320850257,1711632632739,-190.0,0.00040742,10]
[320850258,1711632632750,-707.64498718,0.00040747,30]
[320850259,1711632632817,-1286.34176932,0.00040747,30]
[320850260,1711632632851,-2667.12800066,0.00040747,30]
[320850261,1711632632860,-346.29,0.00045642,2]
[320850262,1711632632872,-150.72,0.00047313,2]
[320850263,1711632632881,-541.58,0.00047513,120]
[320850264,1711632632890,-680.0,0.00047554,2]
[320850265,1711632632899,-250.0,0.0004757,112]
[320850266,1711632632908,-181.93,0.0004758,2]
[320850267,1711632632918,-583.74,0.00047587,2]
[320850268,1711632632926,-202.16,0.00047634,15]
[320850269,1711632632935,-320.0,0.00047671,2]
[320850270,1711632632945,-153.34,0.00047699,120]
[320850271,1711632632954,-8078.77395291,0.00047798,2]
[320850272,1711632632979,-1272.22164415,0.00047798,2]
[320850274,1711632632990,-6136.61833524,0.00047798,2]
[320850276,1711632632999,-453.0,0.000478,120]
[320850278,1711632633008,-168.68,0.00047852,2]
[320850280,1711632633017,-346.29,0.00047906,2]
[320850282,1711632633026,-500.0,0.00048,60]
[320850284,1711632633035,-500.0,0.00048,60]
[320850286,1711632633046,-200.0,0.00048488,25]
[320850287,1711632633056,-800.0,0.00048488,25]
[320850289,1711632633067,-500.0,0.00048488,30]
[320850291,1711632633077,-200.0,0.00048488,30]
[320850293,1711632633087,-200.0,0.00048489,25]
[320850295,1711632633097,-800.0,0.00048489,25]
[320850298,1711632633108,-200.0,0.00048489,25]
[320850300,1711632633117,-500.0,0.00048489,30]
[320850302,1711632633138,-200.0,0.00048489,30]
[320850305,1711632633154,-4344.04880863,0.00048778,2]
[320850307,1711632633163,-403.29866232,0.00048779,4]
[320850309,1711632633173,-1963.06419481,0.00048779,2]
[320850311,1711632633188,-2380.9846138,0.00048779,2]
[320850313,1711632633200,-151.88475609,0.0004878,40]
[320850315,1711632633210,-1599.91717193,0.0004878,25]
[320850317,1711632633220,-301.62692908,0.0004878,2]
[320850319,1711632633230,-469.89583747,0.0004878,2]
[320850321,1711632633239,-279.88245318,0.0004878,25]
[320850323,1711632633248,-10435.4412662,0.0004878,2]
[320850325,1711632633257,-4344.04880861,0.0004878,2]
[320850326,1711632633267,-337.72329136,0.0004878,20]
[320850328,1711632633277,-426.2568,0.0004878,120]
[320850330,1711632633287,-4120.56493453,0.00048835,4]
[320850332,1711632633296,-796.02,0.0004887,30]
[320850334,1711632633306,-182.71296284,0.0004887,2]
[320850336,1711632633316,-158.9,0.0004887,2]
[320850338,1711632633326,-158.9,0.0004887,2]
[320850340,1711632633335,-158.9,0.0004887,2]
[320850342,1711632633345,-158.9,0.0004887,2]
[320850344,1711632633354,-161.27769005,0.00048877,2]
[320850346,1711632633363,-342.38377354,0.00048878,4]
[320850348,1711632633375,-236.66432559,0.00048878,2]
[320850350,1711632633385,-3809.76585458,0.00048878,4]
[320850352,1711632633394,-563.50205483,0.00048878,2]
[320850354,1711632633404,-264.57494634,0.00048878,4]
[320850356,1711632633414,-155.68712163,0.00048878,4]
[320850358,1711632633424,-4510.15104443,0.00048879,4]
[320850361,1711632633437,-550.0,0.00048879,4]
[320850363,1711632633449,-341.89786393,0.00048879,4]
[320850365,1711632633458,-426.72115456,0.00048879,4]
[320850369,1711632633482,-405.0148562,0.00048879,2]
[320850371,1711632633497,-2416.53028592,0.0004888,2]
[320850374,1711632633516,-709.5,0.0004888,2]
[320850377,1711632633532,-475.41079719,0.0004888,2]
[320850380,1711632633547,-730.35536255,0.0004888,2]
[320850383,1711632633575,-591.12078168,0.0004888,2]
[320850414,1711632638348,-324.01188496,0.00048879,2]
[320850415,1711632638359,-2042.50000708,0.0004888,2]
[320850416,1711632638474,-1007.4,0.0004888,2]
[320850417,1711632638596,-1598.19721807,0.0004888,2]
[320850418,1711632638664,-4427.6859,0.0004888,2]
[320850419,1711632638679,-111807.61686794,0.0004888,2]
[320850420,1711632638699,-349.17818625,0.0004888,2]
[320850633,1711632640554,-70445.27828001,0.0004888,2]
[320850647,1711632640623,-257.0,0.0004888,2]
[320850654,1711632640688,-1423.33234901,0.0004888,2]
[320850973,1711632643790,-259.20950796,0.00048879,2]
[320850975,1711632643799,-7590.70247165,0.0004888,2]
[320850977,1711632643812,-4850.09313433,0.0004888,2]
[320851007,1711632644074,-1070.3640565,0.0004888,2]
[320851254,1711632646482,-3253.91009218,0.0004888,2]
[320851257,1711632646493,-23715.56491939,0.0004888,2]
[320851286,1711632646813,-4475.625,0.0004888,2]
[320851288,1711632646824,-5092.15178615,0.0004888,2]
[320851297,1711632646899,-6478.6607139,0.0004888,2]
[320851563,1711633538128,-150.0,0.00034548,10]
[320851564,1711633538147,-5311.90224022,0.00040741,30]
[320851565,1711633538167,-221.89020844,0.00040747,4]
[320851566,1711633538185,-554.68571021,0.00040747,10]
[320851567,1711633538204,-344.42,0.00045663,2]
[320851568,1711633538223,-150.72,0.00047386,2]
[320851569,1711633538243,-451.31,0.00047565,120]
[320851570,1711633538261,-183.0,0.00047568,2]
[320851571,1711633538281,-388.48,0.00047614,2]
[320851572,1711633538302,-250.0,0.00047644,112]
[320851573,1711633538322,-456.0,0.00047677,2]
[320851574,1711633538342,-153.34,0.00047813,120]
[320851575,1711633538365,-344.42,0.00047927,2]
[320851576,1711633538384,-355.7,0.00048,120]
[320851577,1711633538402,-1495.13545264,0.00048117,2]
[320851578,1711633538421,-166.48854781,0.00048118,2]
[320851579,1711633538439,-4132.58,0.00048118,2]
[320851580,1711633538457,-990.71,0.00048161,30]
[320851581,1711633538475,-2400.83,0.00048281,30]
[320851582,1711633538495,-800.0,0.00048488,25]
[320851583,1711633538513,-200.0,0.00048489,25]
[320851584,1711633538531,-800.0,0.00048489,25]
[320851585,1711633538549,-200.0,0.00048489,25]
[320851586,1711633538568,-500.0,0.00048489,30]
[320851587,1711633538586,-200.0,0.00048489,30]
[320851588,1711633538604,-355.7,0.00048603,120]
[320851589,1711633538622,-212.0,0.0004878,2]
[320851590,1711633538640,-3037.1183,0.0004878,2]
[320851591,1711633538659,-442.87732148,0.0004878,2]
[320851592,1711633538678,-200.15597255,0.0004878,20]
[320851593,1711633538698,-274.61070787,0.0004878,2]
[320851594,1711633538717,-11273.28361157,0.0004878,2]
[320851595,1711633538735,-160.62677764,0.0004887,2]
[320851596,1711633538754,-158.92,0.0004887,2]
[320851597,1711633538773,-17311.70553414,0.0004887,30]
[320851598,1711633653120,-996.75696843,0.00048191,2]
[320851599,1711633653145,-635.2,0.00048192,2]
[320851600,1711633653166,-189.52,0.00048242,15]
[320851601,1711633653187,-978.17351,0.0004839,42]
[320851602,1711633653207,-102271.19016265,0.0004887,30]
[320851611,1711633831575,-150.72,0.00047765,2]
[320851612,1711633831585,-258.65,0.00047977,2]
[320851613,1711633831594,-830.63080702,0.00048,2]
[320851614,1711633831603,-250.0,0.00048245,112]
[320851615,1711633831612,-163.69782161,0.0004877,2]
[320851616,1711633831621,-500.0,0.0004877,2]
[320851617,1711633831630,-902.0482,0.0004878,2]
[320851618,1711633831639,-398.58958935,0.0004878,2]
[320851619,1711633831649,-154.1688639,0.0004878,13]
[320851620,1711633831658,-31533.58654694,0.0004887,30]
[320851621,1711633831674,-554.68571021,0.0004887,30]
[320851622,1711633831959,-4427.30363913,0.0004887,30]
[320851623,1711633832023,-647.46,0.0004887,30]
[320851626,1711633832035,-4329.91001087,0.0004887,30]
[320851672,1711633837619,-28924.15839606,0.0004887,30]
[320851673,1711633837628,-37722.43431378,0.0004887,4]
[320851674,1711633837638,-160.62677764,0.0004887,2]